bitfinex-derivatives/quotes_ETHF0:USTF0_20260305
["timestamp","ask_amount","ask_price","bid_price","bid_amount"]
[1772697560370,0.00548801,2105.3,2104.6,0.57063588]
[1772697563767,0.43295657,2105.7,2104.6,0.57063588]
[1772697563971,0.51800538,2105.6,2104.8,0.57063588]
[1772697564171,9.5809196,2105.9,2104.8,0.57063588]
[1772697564172,4.30345869,2105.9,2104.8,0.57063588]
[1772697564375,0.95748933,2105.8,2104.8,0.57063588]
[1772697564566,0.43934617,2105.6,2104.8,0.57063588]
[1772697564766,3.86411252,2105.9,2104.8,0.57063588]
[1772697564767,0.43934617,2105.4,2104.8,0.57063588]
[1772697564968,0.43934617,2105.4,2104.6,0.57063588]
[1772697565274,0.44307045,2105.4,2104.6,0.57063588]
[1772697567279,0.00372428,2105.4,2104.6,0.80813588]
[1772697567474,0.00372428,2105.4,2104.9,0.54308134]
[1772697567962,0.44247062,2105.4,2104.9,0.54308134]
[1772697568167,0.44247062,2105.4,2104.5,0.0060626]
[1772697568168,0.44247062,2105.4,2104.6,0.54308134]
[1772697568370,0.95763507,2105.3,2104.6,0.54308134]
[1772697568672,0.43866139,2105.3,2104.6,0.54308134]
[1772697569172,0.23737,2105.9,2104.5,0.0060626]
[1772697569173,0.43665335,2106.1,2105.2,0.54308134]
[1772697569372,0.2373,2106.5,2105.2,0.54308134]
[1772697569373,0.43665335,2105.9,2105.2,0.54308134]
[1772697570166,0.44100326,2105.9,2105.2,0.54308134]
[1772697571270,0.00434991,2105.9,2105.2,0.54308134]
[1772697572673,0.41395428,2106.4,2105.4,0.54308134]
[1772697573674,0.41976529,2106.4,2105.4,0.54308134]
[1772697576177,0.00581101,2106.4,2105.5,0.23741]
[1772697576372,0.00581101,2106.4,2105.6,0.54308134]
[1772697577483,0.00581101,2106.4,2105.8,0.54308134]
[1772697578377,0.41371337,2106.4,2105.8,0.54308134]
[1772697579481,0.00581101,2106.4,2105.8,0.54308134]
[1772697580382,0.00581101,2106.4,2106.0,0.54308134]
[1772697580581,0.00581101,2106.4,2106.0,0.5487494]
[1772697580779,0.81672164,2106.7,2106.0,0.5487494]
[1772697580984,0.41329878,2106.6,2106.2,0.54308134]
[1772697581378,0.41329878,2106.6,2106.1,0.78042134]
[1772697581782,0.41850533,2106.6,2106.2,0.54308134]
[1772697582282,0.00520655,2106.6,2106.2,0.54308134]
[1772697582780,0.41375138,2107.1,2106.4,0.54308134]
[1772697583180,0.41683532,2107.0,2106.2,0.54308134]
[1772697583582,0.42282324,2107.0,2106.2,0.54308134]
[1772697584186,0.42282324,2107.0,2106.3,0.23732]
[1772697584682,0.42282324,2107.0,2106.3,0.78040134]
[1772697584980,0.42282324,2107.0,2106.4,0.54308134]
[1772697588189,0.00598792,2107.0,2106.4,0.54308134]
[1772697588487,0.4220942,2107.0,2106.4,0.54308134]
[1772697588688,0.4220942,2107.0,2106.1,0.55735178]
[1772697589589,0.56376723,2106.9,2106.1,0.55735178]
[1772697591587,0.56376723,2106.4,2105.4,0.55735178]
[1772697592689,0.56376723,2106.4,2105.4,0.56351863]
[1772697594486,0.80107723,2106.4,2105.4,0.00616685]
[1772697594692,0.56376723,2106.1,2105.4,0.56351863]
[1772697601296,0.56376723,2106.6,2105.4,0.56351863]
[1772697601893,0.56376723,2106.6,2105.8,0.55735178]
[1772697602397,0.56376723,2106.9,2105.8,0.55735178]
[1772697603298,0.37661795,2106.9,2105.8,0.55735178]
[1772697603499,0.37661795,2106.9,2105.4,0.00616685]
[1772697604496,0.37661795,2106.9,2105.5,0.55735178]
[1772697604497,0.38069823,2106.9,2105.5,0.55735178]
[1772697605203,0.23728,2106.6,2105.5,0.55735178]
[1772697605497,0.37880449,2106.5,2105.5,0.55735178]
[1772697606303,0.37880449,2106.3,2105.4,0.56351863]
[1772697607701,0.37965348,2106.1,2105.2,0.55735178]
[1772697607902,0.37965348,2106.1,2104.7,0.55735178]
[1772697608403,0.23735,2106.0,2104.7,0.55735178]
[1772697608605,0.37348663,2105.9,2104.7,0.55735178]
[1772697608801,0.37348663,2105.9,2104.7,0.56209967]
[1772697609002,0.37348663,2106.2,2104.9,0.55735178]
[1772697609600,0.37353731,2106.0,2104.9,0.55735178]
[1772697612108,0.36655494,2106.2,2104.9,0.55735178]
[1772697613308,0.36655494,2106.2,2105.1,0.55735178]
[1772697613509,0.40588284,2106.5,2105.1,0.55735178]
[1772697613710,0.40588284,2106.5,2105.3,0.55735178]
[1772697616113,0.23731,2106.4,2105.3,0.55735178]
[1772697616312,0.43258396,2106.3,2105.3,0.55735178]
[1772697617012,0.43258396,2106.6,2105.3,0.55735178]
[1772697618711,0.4336064,2106.4,2105.3,0.55735178]
[1772697621217,0.43766612,2106.4,2105.3,0.55735178]
[1772697621513,0.43766612,2106.8,2105.3,0.55735178]
[1772697622618,0.43766612,2106.6,2105.3,0.55735178]
[1772697622914,0.43766612,2106.4,2105.3,0.55735178]
[1772697623114,0.43766612,2106.2,2105.3,0.55735178]
[1772697624911,0.43766612,2106.2,2104.8,0.56043498]
[1772697625117,0.45039428,2106.0,2104.8,0.56043498]
[1772697626216,0.44513978,2106.2,2104.9,0.56043498]
[1772697626416,0.44513978,2106.5,2104.9,0.56043498]
[1772697626617,0.44513978,2106.5,2105.1,0.56043498]
[1772697629915,0.44938205,2106.9,2105.1,0.56043498]
[1772697630119,0.44938205,2106.9,2105.3,0.59254995]
[1772697630324,0.44530177,2106.7,2105.3,0.59254995]
[1772697631120,0.44530177,2106.5,2105.3,0.59254995]
[1772697636025,0.44520951,2106.3,2104.8,0.59254995]
[1772697636222,0.44520951,2106.2,2104.8,0.59254995]
[1772697636415,0.44520951,2106.2,2105.0,0.59254995]
[1772697637120,0.44520951,2106.0,2105.0,0.59254995]
[1772697640626,10.269,2106.3,2105.0,0.59254995]
[1772697640627,0.43510314,2106.2,2105.0,0.59254995]
[1772697646224,0.23735,2106.0,2105.0,0.59254995]
[1772697646424,0.43483206,2105.9,2105.0,0.59254995]
[1772697648226,10.269,2106.3,2105.0,0.59254995]
[1772697648531,0.43278021,2106.2,2105.0,0.59254995]
[1772697649131,0.23734,2106.1,2105.0,0.59254995]
[1772697649431,0.43199489,2106.0,2105.0,0.59254995]
[1772697652931,0.43678897,2105.8,2104.8,0.59599714]
[1772697653130,0.43286313,2105.6,2104.8,0.59599714]
[1772697653336,10.222,2105.7,2104.8,0.59599714]
[1772697653637,0.23734,2106.2,2104.8,0.59599714]
[1772697653638,10.222,2105.9,2104.8,0.59599714]
[1772697653838,0.43286313,2106.0,2104.8,0.59599714]
[1772697654034,0.43286313,2106.6,2104.8,0.59599714]
[1772697654234,0.43286313,2106.3,2104.8,0.59599714]
[1772697656737,0.4334518,2106.1,2104.8,0.59599714]
[1772697657341,0.23735,2106.0,2104.8,0.59599714]
[1772697657536,0.44403274,2105.9,2104.8,0.59599714]
[1772697661541,0.44782823,2105.7,2104.8,0.59599714]
[1772697664941,0.44474669,2105.9,2104.8,0.59599714]
[1772697667842,0.44113971,2105.8,2104.8,0.59599714]
[1772697669745,0.44113971,2105.8,2103.3,0.33003723]
[1772697669746,0.44237554,2105.6,2104.5,0.59599714]
[1772697670743,0.44237554,2105.6,2104.5,0.60076059]
[1772697671047,0.54203603,2105.2,2103.4,0.59599714]
[1772697671542,0.54203603,2105.0,2103.4,0.59599714]
[1772697671942,0.54203603,2104.9,2103.4,0.59995362]
[1772697673346,0.54203603,2104.7,2103.4,0.59995362]
[1772697677150,0.54203603,2104.5,2103.4,0.00395648]
[1772697677543,0.54203603,2104.5,2103.4,0.59995362]
[1772697680252,0.54203603,2104.5,2103.4,0.00395648]
[1772697680747,0.54203603,2104.5,2103.4,0.59596662]
[1772697681844,0.56003371,2104.3,2102.9,0.59201014]
[1772697682246,0.56003371,2104.1,2102.9,0.59201014]
[1772697682854,0.56003371,2104.1,2102.9,0.59807867]
[1772697685558,0.56003371,2104.1,2103.0,0.334]
[1772697685854,0.56003371,2104.6,2103.3,0.59201014]
[1772697686159,0.56003371,2104.6,2103.4,0.59201014]
[1772697686961,0.55177441,2104.9,2103.6,0.56603824]
[1772697689157,0.55177441,2104.8,2103.6,0.56603824]
[1772697689464,0.55177441,2104.6,2103.6,0.56603824]
[1772697689960,0.55177441,2104.5,2103.1,0.56603824]
[1772697691460,0.55177441,2104.2,2103.1,0.56603824]
[1772697691959,0.55177441,2103.9,2102.9,0.00606853]
[1772697693358,0.55177441,2103.9,2102.9,0.57210677]
[1772697698469,0.55177441,2104.2,2102.9,0.57210677]
[1772697698669,0.55177441,2104.2,2103.0,0.56603824]
[1772697698867,0.55177441,2104.2,2103.0,0.57169]
[1772697699072,0.55177441,2104.9,2103.5,0.56603824]
[1772697699266,0.55177441,2104.9,2103.7,0.56603824]
[1772697699769,0.00343893,2105.0,2104.1,0.56603824]
[1772697700761,0.55177441,2105.4,2104.2,0.56603824]
[1772697701774,0.5551272,2105.4,2104.2,0.56603824]
[1772697704867,0.5551272,2105.4,2103.5,0.56603824]
[1772697704868,0.55177441,2105.2,2103.5,0.56603824]
[1772697705869,0.55177441,2105.2,2103.6,0.56603824]
[1772697707175,0.55177441,2105.2,2104.0,0.56603824]
[1772697709475,0.56261514,2104.9,2103.5,0.56298984]
[1772697711576,0.56261514,2104.6,2103.5,0.56298984]
[1772697711777,0.56261514,2104.5,2103.0,0.56298984]
[1772697716580,0.56261514,2104.4,2103.0,0.56298984]
[1772697719386,0.56261514,2104.3,2103.0,0.56298984]
[1772697719786,0.56261514,2104.1,2103.0,0.56298984]
[1772697725890,0.56261514,2104.2,2103.0,0.56298984]
[1772697726790,0.56261514,2104.2,2103.0,0.89698984]
[1772697726990,0.56261514,2104.2,2103.1,0.56298984]
[1772697732997,0.56261514,2104.8,2103.3,2.92145563]
[1772697733202,0.56261514,2104.8,2103.6,0.56298984]
[1772697733498,0.56261514,2104.8,2103.8,0.56298984]
[1772697740005,0.55329193,2104.7,2103.2,0.55370201]
[1772697742606,0.55329193,2104.5,2103.2,0.55370201]
[1772697743203,0.55329193,2104.5,2103.4,0.55370201]
[1772697745209,0.55329193,2104.5,2103.6,0.55370201]
[1772697746010,0.55329193,2104.7,2103.6,0.55370201]
[1772697746409,0.55329193,2104.7,2103.8,0.55370201]
[1772697752208,0.55329193,2104.7,2103.7,0.89919235]
[1772697752511,0.55329193,2104.7,2103.2,0.56519235]
[1772697753513,0.53264909,2104.6,2103.2,0.56519235]
[1772697757217,0.53264909,2104.6,2103.4,0.56519235]
[1772697758908,0.53264909,2104.6,2103.6,0.56519235]
[1772697759516,0.53264909,2104.6,2103.7,0.334]
[1772697759717,0.53264909,2104.6,2103.8,0.56519235]
[1772697760115,0.53264909,2104.8,2103.8,0.56519235]
[1772697760817,0.23745,2105.2,2103.8,0.56519235]
[1772697761019,0.53264909,2105.1,2104.0,0.56519235]
[1772697763921,0.53264909,2105.1,2104.2,0.56519235]
[1772697764420,0.53264909,2105.3,2104.2,0.56519235]
[1772697764622,0.53264909,2105.3,2104.4,0.56519235]
[1772697764815,0.53264909,2105.3,2104.4,0.56856831]
[1772697766523,0.53264909,2105.3,2104.5,0.23752]
[1772697766725,0.53264909,2105.5,2104.6,0.56519235]
[1772697767726,0.53648509,2105.5,2104.6,0.56519235]
[1772697768626,0.53648509,2105.5,2104.5,0.56519235]
[1772697770125,0.53648509,2105.5,2104.4,0.00337596]
[1772697771832,0.53648509,2105.5,2104.4,0.55852716]
[1772697772933,0.53648509,2105.5,2104.5,0.5551512]
[1772697773834,0.53648509,2105.5,2104.4,0.55852716]
[1772697774328,0.77389509,2105.5,2104.4,0.00337596]
[1772697774536,0.56906119,2105.4,2104.4,0.00337596]
[1772697775234,0.56906119,2105.4,2104.4,0.55852716]
[1772697776232,0.56906119,2105.4,2104.4,0.00337596]
[1772697776437,0.56906119,2105.2,2103.9,0.5551512]
[1772697777437,0.56906119,2105.2,2103.9,0.55959944]
[1772697777832,0.56906119,2105.0,2103.9,0.00444824]
[1772697778036,0.56906119,2104.8,2103.9,0.00444824]
[1772697779238,0.56906119,2104.8,2103.5,0.5551512]
[1772697780038,0.56906119,2104.8,2103.5,0.56006353]
[1772697787741,0.2375,2104.7,2103.5,0.56006353]
[1772697787948,0.56906119,2104.6,2103.5,0.00491233]
[1772697788244,0.2375,2104.7,2103.5,0.00491233]
[1772697788245,0.56906119,2104.4,2103.5,0.00491233]
[1772697789349,0.56906119,2104.2,2103.2,0.5551512]
[1772697789645,0.56906119,2104.2,2102.4,0.5551512]
[1772697790050,0.56906119,2104.0,2102.4,0.5551512]
[1772697790549,0.56906119,2103.8,2102.4,0.56112853]
[1772697798161,0.24109275,2104.0,2102.4,0.56112853]
[1772697798162,0.56906119,2103.6,2102.4,0.56112853]
[1772697799362,0.54823146,2103.2,2101.8,0.55692297]
[1772697800161,0.54823146,2103.2,2101.8,0.56128506]
[1772697801258,0.54823146,2103.0,2101.8,0.56128506]
[1772697801460,0.54823146,2103.0,2101.8,0.00436209]
[1772697801664,0.54823146,2102.8,2101.8,0.00436209]
[1772697802163,0.54823146,2102.8,2101.8,0.56128506]
[1772697802458,0.54823146,2102.8,2101.9,0.55692297]
[1772697802762,0.54823146,2102.8,2101.8,0.00436209]
[1772697803964,0.54823146,2102.8,2101.8,0.56128506]
[1772697805864,0.54823146,2102.8,2101.8,0.00436209]
[1772697806467,0.54823146,2102.6,2101.8,0.00436209]
[1772697806867,0.54823146,2102.6,2101.4,0.55692297]
[1772697807264,0.54823146,2102.6,2100.8,0.59167212]
[1772697807763,0.57554723,2102.4,2100.8,0.59167212]
[1772697808069,0.57554723,2102.0,2100.8,0.59532339]
[1772697808762,0.57554723,2102.0,2100.8,0.00365127]
[1772697808969,0.57554723,2101.7,2100.8,0.00365127]
[1772697809369,0.57554723,2101.7,2100.8,0.59532339]
[1772697809771,0.57554723,2101.7,2100.8,0.00365127]
[1772697811370,0.57554723,2101.7,2100.8,0.59532339]
[1772697816071,2.68995936,2102.2,2100.8,0.59532339]
[1772697816276,0.57554723,2102.1,2100.8,0.59532339]
[1772697818076,0.57554723,2102.1,2100.9,0.59167212]
[1772697818278,0.57554723,2102.1,2101.0,0.59167212]
[1772697819176,0.57554723,2101.8,2101.0,0.59167212]
[1772697819774,0.57554723,2101.8,2100.8,0.59532339]
[1772697821873,0.57554723,2101.5,2100.8,0.59532339]
[1772697822279,0.57554723,2101.5,2100.8,0.00365127]
[1772697822979,0.57554723,2101.5,2100.2,0.59167212]
[1772697823883,0.57554723,2101.5,2100.4,0.59167212]
[1772697827179,0.57554723,2101.5,2100.6,0.59167212]
[1772697827477,0.57554723,2101.9,2100.6,0.59167212]
[1772697827682,0.2378,2102.1,2100.6,0.59167212]
[1772697827683,0.57554723,2101.6,2100.6,0.59167212]
[1772697829585,0.55863299,2101.3,2100.3,0.54566905]
[1772697831588,0.55863299,2101.0,2100.2,0.00442937]
[1772697832685,0.55863299,2101.0,2099.6,0.54566905]
[1772697832882,0.55863299,2100.7,2099.6,0.54566905]
[1772697833586,0.56363624,2100.7,2099.6,0.55111174]
[1772697833782,0.56363624,2100.7,2099.6,0.00544269]
[1772697834390,0.56363624,2100.7,2099.6,0.55111174]
[1772697839394,0.56363624,2100.7,2099.8,0.54566905]
[1772697840091,0.00500325,2100.7,2099.8,0.54566905]
[1772697840286,0.00500325,2100.7,2100.0,0.54566905]
[1772697840486,0.55863299,2101.4,2100.2,0.54566905]
[1772697840695,0.55863299,2101.4,2100.4,0.54566905]
[1772697840995,0.55863299,2101.6,2100.6,0.54566905]
[1772697841597,0.56343018,2101.6,2100.6,0.54566905]
[1772697842098,0.56343018,2101.6,2100.1,0.54566905]
[1772697842899,0.55863299,2101.0,2099.8,0.54566905]
[1772697843098,0.55863299,2101.0,2099.9,0.54566905]
[1772697843599,0.55863299,2101.0,2100.0,0.54566905]
[1772697844994,0.24264719,2101.6,2100.2,0.54566905]
[1772697844995,0.55863299,2101.2,2100.2,0.54566905]
[1772697845199,0.55863299,2101.5,2100.4,0.54566905]
[1772697849906,0.55863299,2101.5,2100.3,0.334]
[1772697850204,0.55863299,2101.5,2100.3,0.87966905]
[1772697850404,0.55863299,2101.5,2100.4,0.54566905]
[1772697850704,0.55863299,2101.5,2100.4,0.87966905]
[1772697851309,0.55863299,2101.5,2100.4,0.54566905]
[1772697852008,0.55863299,2101.5,2099.9,0.54566905]
[1772697852609,0.55773299,2101.5,2099.9,0.54566905]
[1772697853509,0.55773299,2101.5,2100.1,0.54566905]
[1772697853706,0.55773299,2101.5,2100.5,0.54566905]
[1772697856110,0.00479719,2101.6,2100.0,0.54566905]
[1772697856111,0.55863299,2101.2,2100.0,0.54566905]
[1772697857012,0.55863299,2101.2,2100.2,0.54566905]
[1772697859316,0.55863299,2101.2,2100.0,0.55234393]
[1772697864012,0.59721782,2101.0,2100.0,0.55234393]
[1772697866220,0.59721782,2101.5,2100.1,0.55234393]
[1772697866818,0.59721782,2101.5,2100.5,0.55234393]
[1772697867618,0.00479719,2101.6,2100.5,0.55234393]
[1772697867816,0.00479719,2101.6,2100.7,0.59429833]
[1772697868619,0.59254839,2101.6,2100.7,0.59429833]
[1772697869722,0.00479719,2101.6,2100.7,0.59429833]
[1772697870021,0.5877512,2101.8,2100.9,0.59429833]
[1772697871018,0.59355474,2101.8,2100.9,0.59429833]
[1772697872424,0.00580354,2101.8,2100.9,0.59429833]
[1772697873623,0.00440844,2101.8,2101.1,0.59429833]
[1772697873818,0.5877512,2102.0,2101.1,0.59429833]
[1772697874024,0.5877512,2102.5,2101.1,0.59429833]
[1772697874521,0.5877512,2102.5,2101.3,0.59429833]
[1772697874722,0.59234589,2102.5,2101.3,0.59771583]
[1772697875221,0.59234589,2102.5,2101.5,0.59429833]
[1772697875420,0.5877512,2102.1,2101.3,0.0034175]
[1772697875626,0.5877512,2102.1,2100.9,0.59429833]
[1772697876126,0.5877512,2102.1,2100.5,0.59429833]
[1772697876528,0.5877512,2102.1,2100.5,0.59976537]
[1772697877429,0.5877512,2101.9,2100.5,0.59976537]
[1772697880131,0.5877512,2101.9,2100.7,0.59429833]
[1772697880433,0.5877512,2101.7,2100.7,0.59429833]
[1772697880926,0.5877512,2101.7,2100.5,0.59976537]
[1772697884629,2.69100244,2102.4,2100.5,0.59976537]
[1772697884630,0.5877512,2101.5,2100.5,0.00546704]
[1772697884832,0.5877512,2101.1,2099.2,0.23811]
[1772697885037,0.5877512,2100.9,2099.3,0.59429833]
[1772697885435,0.5877512,2100.7,2099.3,0.59429833]
[1772697885837,0.59318605,2100.7,2099.3,0.59946383]
[1772697887235,0.5877512,2100.5,2099.3,0.59946383]
[1772697887434,0.5877512,2100.3,2098.9,0.57583963]
[1772697888040,0.5877512,2100.1,2098.2,0.58100513]
[1772697888430,0.5877512,2100.1,2098.2,0.58470511]
[1772697890742,10.70000244,2100.3,2098.2,0.58470511]
[1772697890743,0.57383367,2099.7,2098.2,0.58470511]
[1772697893345,0.57383367,2100.3,2098.6,0.56047595]
[1772697893643,0.57383367,2100.3,2098.8,0.56047595]
[1772697893843,0.57383367,2100.3,2099.0,0.56047595]
[1772697894436,0.57383367,2100.3,2099.2,0.56047595]
[1772697894644,0.57383367,2100.6,2099.4,0.56047595]
[1772697895445,0.57383367,2100.6,2098.8,0.56047595]
[1772697896342,0.57383367,2100.3,2098.8,0.56047595]
[1772697896644,0.57383367,2100.1,2098.8,0.56047595]
[1772697896846,0.57383367,2099.9,2098.8,0.56047595]
[1772697897045,0.57383367,2099.9,2098.2,0.24192998]
[1772697897246,0.57383367,2099.9,2098.3,0.56047595]
[1772697898338,0.57383367,2099.9,2098.5,0.56047595]
[1772697898742,0.57383367,2099.9,2098.7,0.56047595]
[1772697900450,0.57383367,2100.4,2098.9,0.56047595]
[1772697900748,0.57383367,2100.4,2099.1,0.56047595]
[1772697903050,0.57383367,2100.2,2098.6,0.56047595]
[1772697903349,0.57383367,2100.2,2098.8,0.56047595]
[1772697903849,0.57383367,2100.2,2098.9,0.23816]
[1772697904051,0.57383367,2100.2,2099.0,0.56047595]
[1772697904845,0.57383367,2100.6,2099.4,0.56047595]
[1772697905645,0.57383367,2100.6,2099.6,0.56047595]
[1772697905951,0.00543485,2100.7,2099.6,0.56047595]
[1772697906445,0.57926852,2100.7,2099.6,0.56047595]
[1772697908551,0.00543485,2100.7,2099.8,0.56047595]
[1772697908755,0.00543485,2100.7,2099.8,0.5651845]
[1772697909055,0.57926852,2100.7,2099.8,0.5651845]
[1772697909354,0.00543485,2100.7,2099.8,0.5651845]
[1772697909553,0.57926852,2100.7,2099.8,0.5651845]
[1772697910154,0.00543485,2100.7,2100.0,0.56047595]
[1772697910455,0.57926852,2100.7,2099.8,0.5651845]
[1772697912051,0.57926852,2100.7,2099.8,0.00470855]
[1772697913249,0.57926852,2100.7,2099.8,0.5651845]
[1772697914256,0.57926852,2100.7,2099.8,0.00470855]
[1772697914645,0.57926852,2100.7,2099.4,0.56047595]
[1772697915144,0.57383367,2100.6,2099.4,0.56047595]
[1772697915655,0.57383367,2100.6,2099.4,0.5655944]
[1772697921459,0.6143458,2100.4,2099.4,0.00511845]
[1772697921859,0.6143458,2100.2,2099.4,0.00511845]
[1772697922059,0.6143458,2100.0,2099.0,0.59850413]
[1772697922259,0.6143458,2099.8,2098.6,0.60362258]
[1772697922954,0.6143458,2099.8,2098.6,0.60742824]
[1772697923963,0.6143458,2099.8,2098.6,0.00380566]
[1772697924663,0.6143458,2099.8,2098.6,0.61027669]
[1772697924962,0.6143458,2099.6,2098.6,0.00380566]
[1772697925661,0.6143458,2099.6,2098.6,0.60809023]
[1772697930267,0.6143458,2099.6,2098.6,0.00380566]
[1772697930463,0.6143458,2099.6,2098.6,0.59947781]
[1772697934369,0.55960197,2099.2,2097.9,0.59567215]
[1772697935172,0.55960197,2099.2,2098.0,0.59567215]
[1772697935369,0.56300122,2099.2,2098.0,0.60057615]
[1772697939072,3.2529211,2099.2,2098.0,0.004904]
[1772697939277,0.55960197,2099.1,2098.0,0.004904]
[1772697940879,0.55960197,2099.1,2098.0,0.60057615]
[1772697943179,0.55960197,2099.1,2098.0,0.004904]
[1772697943782,0.55960197,2099.1,2098.0,0.60057615]
[1772697945078,0.55960197,2099.1,2098.0,0.004904]
[1772697945384,0.24151925,2099.2,2098.0,0.004904]
[1772697945385,0.55960197,2098.9,2098.0,0.004904]
[1772697945884,0.55960197,2098.9,2098.0,0.60057615]
[1772697947079,0.00339925,2099.2,2098.1,3.04746203]
[1772697947283,0.56300122,2099.2,2098.2,0.59567215]
[1772697947984,0.00339925,2099.2,2098.3,0.59567215]
[1772697948183,0.55960197,2099.9,2098.5,0.59567215]
[1772697948988,0.55960197,2099.9,2098.7,0.57661048]
[1772697949188,0.56401019,2099.9,2098.8,0.57661048]
[1772697950888,0.56401019,2099.9,2098.2,0.57661048]
[1772697951088,0.56401019,2099.9,2098.4,0.57661048]
[1772697951282,0.56401019,2099.9,2098.6,0.57661048]
[1772697951583,0.56401019,2099.9,2098.7,0.57661048]
[1772697953095,0.59931893,2099.7,2098.5,0.57661048]
[1772697953492,0.59931893,2099.5,2098.1,0.57661048]
[1772697954385,0.59931893,2099.3,2098.1,0.57661048]
[1772697954590,0.59931893,2099.3,2098.0,0.004904]
[1772697954591,0.59931893,2099.2,2098.0,0.58151448]
[1772697954991,0.59931893,2099.2,2098.0,0.004904]
[1772697955787,0.59931893,2099.2,2098.0,0.58151448]
[1772697962600,0.59931893,2099.2,2098.1,0.57661048]
[1772697973412,0.59931893,2099.2,2098.0,0.004904]
[1772697974413,0.59931893,2099.2,2097.9,0.57661048]
[1772697974610,0.59931893,2099.0,2097.7,1.41178683]
[1772697974810,0.59931893,2098.6,2097.7,0.83517635]
[1772697975409,0.59931893,2098.6,2097.7,0.83851634]
[1772697975810,0.59931893,2098.6,2097.7,1.41512682]
[1772697976011,0.59931893,2098.6,2097.8,0.57661048]
[1772697976715,0.59931893,2098.6,2097.7,1.41512682]
[1772697977015,0.59931893,2098.6,2097.8,0.57661048]
[1772697977815,0.59931893,2098.6,2097.7,0.83851634]
[1772697981416,0.59931893,2098.6,2097.8,0.59301018]
[1772697982717,0.59931893,2098.6,2097.7,1.43152652]
[1772697982919,0.59931893,2098.6,2097.8,0.59301018]
[1772697984014,0.23817,2098.8,2097.8,0.59301018]
[1772697984015,0.54861153,2098.8,2097.8,0.59301018]
[1772697984218,0.54861153,2099.2,2097.8,0.59301018]
[1772697985120,0.54861153,2098.9,2097.8,0.59301018]
[1772697989023,0.56200848,2098.6,2097.8,0.59301018]
[1772697990532,0.56200848,2099.0,2097.8,0.59301018]
[1772697990722,0.56200848,2099.0,2097.9,0.55366551]
[1772697992330,0.56200848,2098.9,2097.9,0.55366551]
[1772697992530,0.56200848,2098.9,2097.7,1.39218185]
[1772697993531,0.56200848,2098.9,2097.8,0.55366551]
[1772698000336,0.56200848,2098.6,2097.7,0.83851634]
[1772698003138,0.56200848,2098.6,2097.0,0.55366551]
[1772698003139,0.56200848,2098.4,2097.0,0.55366551]
[1772698004144,0.56653158,2098.4,2097.0,0.55815142]
[1772698007148,0.56200848,2098.2,2097.0,0.55815142]
[1772698009642,0.0045231,2098.4,2097.0,0.55815142]
[1772698009643,0.5494298,2098.0,2097.0,0.55815142]
[1772698009940,0.0045231,2098.4,2095.9,0.08658507]
[1772698009941,0.5494298,2097.8,2095.9,0.08658507]
[1772698010246,0.55670535,2097.6,2095.9,0.08658507]
[1772698010642,8.247,2098.2,2095.6,0.23853]
[1772698010843,0.55670535,2097.2,2095.7,0.08658507]
[1772698011044,0.55670535,2097.2,2095.7,0.09161514]
[1772698011249,0.55670535,2097.2,2095.9,0.09226684]
[1772698011748,0.55670535,2097.2,2096.1,0.09226684]
[1772698013752,0.55670535,2097.2,2095.8,0.08822414]
[1772698014048,0.55670535,2097.2,2096.0,0.08822414]
[1772698014250,0.55588582,2097.7,2096.2,0.08822414]
[1772698014749,0.55588582,2097.7,2096.4,0.08822414]
[1772698014950,0.55588582,2097.7,2096.6,0.08822414]
[1772698018648,0.57417795,2098.2,2097.0,0.05163988]
[1772698020856,0.57417795,2098.2,2097.4,0.05247141]
[1772698021160,0.57828528,2098.4,2097.6,0.05247141]
[1772698021361,0.57828528,2098.4,2097.4,0.00610221]
[1772698021362,0.57828528,2098.4,2097.4,0.05818127]
[1772698022155,0.0045231,2098.4,2097.5,0.05207906]
[1772698022664,0.2381,2099.4,2097.7,0.05207906]
[1772698022865,0.57621991,2099.3,2097.7,0.05207906]
[1772698023164,0.57621991,2099.3,2097.9,0.04755596]
[1772698023663,0.57966805,2099.3,2097.9,0.04755596]
[1772698023863,0.57432391,2099.1,2097.5,0.05134796]
[1772698024365,0.57432391,2099.1,2097.7,0.05134796]
[1772698024564,0.57432391,2099.1,2097.9,0.05134796]
[1772698025064,0.57432391,2099.1,2097.5,0.05134796]
[1772698025560,0.23814,2099.0,2097.5,0.05134796]
[1772698025764,0.57689415,2098.9,2097.5,0.05134796]
[1772698026066,0.57689415,2098.7,2097.5,0.05134796]
[1772698026768,0.57689415,2098.7,2097.7,0.04620749]
[1772698028667,0.57788229,2099.2,2097.9,0.0442312]
[1772698033171,0.57788229,2099.2,2098.1,0.039023]
[1772698033570,0.57788229,2099.2,2097.6,0.03471266]
[1772698034470,0.57788229,2099.2,2097.7,0.23829]
[1772698034675,0.57788229,2099.2,2097.8,0.03471266]
[1772698034877,0.23813,2099.1,2097.8,0.03471266]
[1772698035077,0.58264156,2099.0,2097.8,0.03471266]
[1772698035271,0.58264156,2099.0,2097.4,0.00610221]
[1772698035472,0.58314946,2098.8,2097.5,0.03369687]
[1772698038578,0.58073823,2098.6,2097.4,0.00610221]
[1772698038784,0.58073823,2098.6,2097.4,0.37860071]
[1772698038984,0.58073823,2098.6,2097.5,0.0384985]
[1772698040385,0.58073823,2098.6,2097.5,0.334]
[1772698040581,0.58073823,2098.6,2097.4,0.00610221]
[1772698040982,0.58062816,2098.4,2097.4,0.00610221]
[1772698043083,0.57769176,2098.2,2096.3,0.04459143]
[1772698043288,0.57769176,2098.1,2096.3,0.04459143]
[1772698043583,0.81594176,2098.1,2096.3,0.04459143]
[1772698043789,0.5767788,2097.6,2095.7,0.04641736]
[1772698044184,0.23834,2097.3,2095.7,0.05259723]
[1772698044381,0.5767788,2096.9,2095.7,0.00617987]
[1772698045088,0.5767788,2096.9,2095.7,0.05259723]
[1772698045779,0.5767788,2096.9,2095.7,0.00617987]
[1772698046589,0.5767788,2096.9,2095.1,0.04718506]
[1772698047590,0.5767788,2096.9,2095.1,0.05304668]
[1772698048387,0.56736493,2096.7,2095.1,0.00586162]
[1772698048593,0.56645252,2096.2,2095.0,0.54851645]
[1772698049293,0.56645252,2096.2,2095.2,0.54851645]
[1772698049491,0.56645252,2096.2,2095.2,0.5536178]
[1772698050392,0.56645252,2096.8,2095.2,0.5536178]
[1772698050593,0.56645252,2096.8,2095.4,0.54851645]
[1772698051800,0.56645252,2096.8,2095.6,0.54851645]
[1772698052093,0.56645252,2096.8,2095.8,0.54851645]
[1772698052299,0.56645252,2097.4,2095.8,0.54851645]
[1772698052591,0.56645252,2097.4,2096.0,0.54851645]
[1772698056797,0.56645252,2097.1,2095.7,0.54851645]
[1772698056999,0.56645252,2096.8,2095.3,0.54851645]
[1772698057392,0.56645252,2096.8,2095.5,0.54851645]
[1772698059099,0.56645252,2096.7,2095.5,0.54851645]
[1772698059305,0.56645252,2096.5,2095.2,0.00510135]
[1772698059903,0.56645252,2096.2,2094.9,1.19465036]
[1772698060897,0.56645252,2096.2,2094.9,1.19827933]
[1772698061094,0.56161982,2095.3,2093.8,0.54851645]
[1772698061293,0.56161982,2095.3,2094.2,0.54851645]
[1772698062002,0.56161982,2095.3,2094.2,0.55461438]